fUSD/lending_fUSD_20240409
["ID","MTS","AMOUNT","RATE_DAILY","PERIOD"]
[322016706,1712688792140,-2354.77756212,0.00018314,2]
[322016707,1712688792151,-325.03814807,0.00018314,2]
[322016708,1712688792179,-171.3846067,0.00018314,2]
[322016710,1712688818336,-3241.99180621,0.00018315,2]
[322016711,1712688818352,-1225.01638758,0.00018315,2]
[322016712,1712688818362,-3241.99180621,0.00018316,2]
[322016720,1712688873434,-325.03814807,0.00018315,2]
[322016721,1712688873454,-325.03814807,0.00018315,2]
[322016722,1712688873465,-1954.92370386,0.00018315,2]
[322016767,1712689258462,150.0,0.00017941,2]
[322016768,1712689310245,479.14,0.00015698,2]
[322016769,1712689310444,479.14,0.00017962,2]
[322016770,1712689318316,150.0,0.00017653,2]
[322016771,1712689318429,150.0,0.00017147,2]
[322016772,1712689318515,150.0,0.00017939,2]
[322016776,1712689470280,567.15,0.00017562,2]
[322016780,1712689542659,434.9,0.00017539,2]
[322016781,1712689553470,200.0,0.00017451,2]
[322016782,1712689558331,150.0,0.00016254,2]
[322016786,1712689754659,431.22,0.00015608,2]
[322016787,1712689754886,431.22,0.00017872,2]
[322016788,1712689807602,-212.57812478,0.0002739,30]
[322016789,1712689807624,-2000.0,0.00027397,30]
[322016790,1712689807642,-2000.0,0.00027397,30]
[322016791,1712689807662,-2000.0,0.00027397,30]
[322016792,1712689807681,-2009.76222699,0.00027397,30]
[322016793,1712689807703,-500.0,0.00027397,30]
[322016794,1712689807725,-500.0,0.00027397,30]
[322016795,1712689807751,-382.22990019,0.00027397,30]
[322016796,1712689807778,-4349.19225,0.00027928,30]
[322016797,1712689807799,-998.1304956,0.00028,29]
[322016798,1712689807824,-151.0,0.0002836,30]
[322016799,1712689807849,-1200.0,0.00029,30]
[322016800,1712689807872,-5000.0,0.00029,30]
[322016801,1712689807898,-1011.8,0.000295,30]
[322016802,1712689807918,-5031.44247,0.0002957,30]
[322016803,1712689807940,-10000.0,0.000298,30]
[322016804,1712689807966,-20000.0,0.0003,30]
[322016805,1712689807986,-677.85239771,0.0003,120]
[322016806,1712689808006,-157949.83186298,0.0003,120]
[322016807,1712689808027,-1200.0,0.0003,31]
[322016808,1712689808048,-2001.23,0.0003,30]
[322016809,1712689808068,-444.77029743,0.0003,30]
[322016810,1712689808088,-3251.82046223,0.0003,30]
[322016811,1712689808112,-2000.0,0.0003,30]
[322016834,1712689831556,-325.03814807,0.00018047,2]
[322016835,1712689831568,-1608.17564243,0.00018048,2]
[322016836,1712689831804,-293.43812873,0.00018048,2]
[322016837,1712689831816,-256.90979463,0.00018048,2]
[322016838,1712689831855,-8981.8420903,0.00018048,2]
[322016839,1712689831865,-531.55753269,0.0001805,2]
[322016840,1712689831875,-150.0,0.00018052,2]
[322016841,1712689831885,-150.0,0.00018132,2]
[322016842,1712689831894,-150.0,0.00018145,2]
[322016843,1712689831904,-339.58435607,0.00018215,2]
[322016844,1712689831914,-199.20521119,0.00018215,2]
[322016845,1712689831923,-208.2545329,0.00018215,2]
[322016846,1712689831932,-7708.7019,0.00018215,2]
[322016847,1712689831941,-393.0461,0.00018215,2]
[322016848,1712689831950,-168.75036012,0.00018216,2]
[322016850,1712689831959,-150.0,0.00018258,2]
[322016852,1712689831969,-150.99,0.00018258,2]
[322016854,1712689831979,-499.99,0.00018258,2]
[322016856,1712689831988,-150.0,0.0001827,2]
[322016858,1712689831998,-3010.98672023,0.000183,2]
[322016860,1712689832007,-150.0,0.00018306,2]
[322016862,1712689832016,-202.30351054,0.00018313,2]
[322016864,1712689832025,-163.90456027,0.00018313,2]
[322016866,1712689832034,-225.17264053,0.00018313,2]
[322016867,1712689832043,-155.08538378,0.00018313,2]
[322016870,1712689832052,-1000.0,0.00018314,2]
[322016871,1712689832062,-8689.39231416,0.00018315,2]
[322016875,1712689832123,-2997.08030588,0.00018315,2]
[322016876,1712689832135,-707.49709394,0.00018315,2]
[322016877,1712689832157,-137650.0,0.00018315,2]
[322016878,1712689832168,-5128.05846457,0.00018315,2]
[322016879,1712689832183,-1476.94465062,0.00018315,2]
[322016881,1712689838054,-392.83190755,0.00018046,2]
[322016882,1712689838068,-234.90501991,0.00018046,2]
[322016883,1712689838077,-208.93276683,0.00018313,2]
[322016884,1712689838090,-199.2269807,0.00018313,2]
[322016885,1712689838100,-245.08709582,0.00018313,2]
[322016886,1712689838110,-213.44852002,0.00018315,2]
[322016888,1712689838122,-5961416.88502571,0.00018315,2]
[322016890,1712689838131,-2113105.31391772,0.00018315,2]
[322016892,1712689838143,-188539.98481426,0.00018315,2]
[322016894,1712689838154,-2489756.80536159,0.00018315,2]
[322016896,1712689838163,-1272.53998208,0.00018316,2]
[322016897,1712689838173,-150.0,0.00018344,2]
[322016898,1712689838183,-339.58435605,0.00018459,2]
[322016899,1712689838192,-150.0,0.00018532,2]
[322016900,1712689838201,-167.21,0.00018554,2]
[322016901,1712689838210,-150.0,0.00018601,2]
[322016902,1712689838220,-339.58435605,0.00018703,2]
[322016903,1712689838229,-150.0,0.00018725,2]
[322016904,1712689838238,-168.75036011,0.0001883,2]
[322016905,1712689838248,-432.85,0.00018834,2]
[322016906,1712689838258,-265.59349403,0.00018861,2]
[322016907,1712689838268,-245000.0,0.00018863,2]
[322016908,1712689838282,-72250.1052,0.00018863,2]
[322016909,1712689838291,-37503.0,0.00018944,2]
[322016910,1712689838301,-339.58435605,0.00018947,2]
[322016911,1712689838310,-150.0,0.00018976,2]
[322016912,1712689838320,-1674267.36211903,0.00019,2]
[322016913,1712689838330,-440.60759322,0.00019178,2]
[322016914,1712689838339,-500.0,0.00019178,2]
[322016915,1712689838351,-234.28448347,0.00019178,2]
[322016916,1712689838361,-500.0,0.00019178,2]
[322016917,1712689838372,-500.0,0.00019178,2]
[322016918,1712689838382,-155.33339114,0.00019178,2]
[322016919,1712689838393,-320.12679218,0.00019178,2]
[322016920,1712689838403,-500.0,0.00019178,2]
[322016921,1712689838413,-500.0,0.00019178,2]
[322016922,1712689838422,-500.0,0.00019178,2]
[322016923,1712689838430,-500.0,0.00019178,2]
[322016924,1712689838440,-500.0,0.00019178,2]
[322016925,1712689838450,-500.0,0.00019178,2]
[322016926,1712689838459,-500.0,0.00019178,2]
[322016927,1712689838468,-500.0,0.00019178,2]
[322016928,1712689838478,-500.0,0.00019178,2]
[322016929,1712689838487,-500.0,0.00019178,2]
[322016930,1712689838495,-500.0,0.00019178,2]
[322016931,1712689838504,-500.0,0.00019178,2]
[322016932,1712689838513,-219.59929877,0.00019178,2]
[322016933,1712689838522,-302.03329438,0.00019178,2]
[322016934,1712689838530,-500.0,0.00019178,2]
[322016935,1712689838539,-500.0,0.00019178,2]
[322016936,1712689838548,-500.0,0.00019178,2]
[322016937,1712689838557,-500.0,0.00019178,2]
[322016938,1712689838565,-500.0,0.00019178,2]
[322016939,1712689838574,-500.0,0.00019178,2]
[322016940,1712689838583,-500.0,0.00019178,2]
[322016941,1712689838593,-500.0,0.00019178,2]
[322016942,1712689838602,-500.0,0.00019178,2]
[322016943,1712689838610,-500.0,0.00019178,2]
[322016944,1712689838619,-500.0,0.00019178,2]
[322016945,1712689838628,-500.0,0.00019178,2]
[322016946,1712689838639,-500.0,0.00019178,2]
[322016947,1712689838648,-500.0,0.00019178,2]
[322016948,1712689838657,-500.0,0.00019178,2]
[322016949,1712689838666,-500.0,0.00019178,2]
[322016950,1712689838676,-433.04556753,0.00019178,2]
[322016951,1712689838685,-500.0,0.00019178,2]
[322016952,1712689838695,-500.0,0.00019178,2]
[322016953,1712689838704,-500.0,0.00019178,2]
[322016954,1712689838714,-496.85195908,0.00019178,2]
[322016955,1712689838723,-500.0,0.00019178,2]
[322016956,1712689838732,-500.0,0.00019178,2]
[322016957,1712689838742,-420.45839648,0.00019178,2]
[322016958,1712689838751,-500.0,0.00019178,2]
[322016959,1712689838760,-500.0,0.00019178,2]
[322016960,1712689838770,-500.0,0.00019178,2]
[322016961,1712689838780,-500.0,0.00019178,2]
[322016962,1712689838789,-500.0,0.00019178,2]
[322016963,1712689838798,-500.0,0.00019178,2]
[322016964,1712689838808,-500.0,0.00019178,2]
[322016965,1712689838817,-500.0,0.00019178,2]
[322016966,1712689838826,-500.0,0.00019178,2]
[322016967,1712689838835,-500.0,0.00019178,2]
[322016968,1712689838845,-500.0,0.00019178,2]
[322016969,1712689838855,-500.0,0.00019178,2]
[322016970,1712689838863,-500.0,0.00019178,2]
[322016971,1712689838873,-500.0,0.00019178,2]
[322016972,1712689838882,-500.0,0.00019178,2]
[322016973,1712689838894,-500.0,0.00019178,2]
[322016974,1712689838903,-500.0,0.00019178,2]
[322016975,1712689838912,-541.7,0.00019178,2]
[322016976,1712689838921,-500.0,0.00019178,2]
[322016977,1712689838930,-1568.73,0.00019178,2]
[322016978,1712689838939,-500.0,0.00019178,2]
[322016979,1712689838948,-500.0,0.00019178,2]
[322016980,1712689838958,-556.51,0.00019178,2]
[322016981,1712689838967,-199.49457765,0.00019178,2]
[322016982,1712689838976,-500.0,0.00019178,2]
[322016983,1712689838985,-500.0,0.00019178,2]
[322016984,1712689838994,-726.75,0.00019178,2]
[322016985,1712689839003,-500.0,0.00019178,2]
[322016986,1712689839012,-834.61,0.00019178,2]
[322016987,1712689839021,-579.84,0.00019178,2]
[322016988,1712689839031,-5931.33,0.00019178,2]
[322016989,1712689839040,-500.0,0.00019178,2]
[322016990,1712689839051,-500.0,0.00019178,2]
[322016991,1712689839061,-500.0,0.00019178,2]
[322016992,1712689839070,-500.0,0.00019178,2]
[322016993,1712689839079,-645.19,0.00019178,2]
[322016994,1712689839089,-500.0,0.00019178,2]
[322016995,1712689839098,-2631.18,0.00019178,2]
[322016996,1712689839108,-500.0,0.00019178,2]
[322016997,1712689839117,-500.0,0.00019178,2]
[322016998,1712689839127,-500.0,0.00019178,2]
[322016999,1712689839139,-500.0,0.00019178,2]
[322017000,1712689839149,-500.0,0.00019178,2]
[322017001,1712689839159,-1536.22,0.00019178,2]
[322017002,1712689839168,-500.0,0.00019178,2]
[322017003,1712689839178,-500.0,0.00019178,2]
[322017004,1712689839187,-4167.86,0.00019178,2]
[322017005,1712689839196,-924.52,0.00019178,2]
[322017006,1712689839205,-500.0,0.00019178,2]
[322017007,1712689839214,-500.0,0.00019178,2]
[322017008,1712689839223,-500.0,0.00019178,2]
[322017009,1712689839232,-962.64,0.00019178,2]
[322017010,1712689839241,-500.0,0.00019178,2]
[322017012,1712689839256,-500.0,0.00019178,2]
[322017014,1712689839276,-988.75,0.00019178,2]
[322017016,1712689839298,-500.0,0.00019178,2]
[322017018,1712689839320,-500.0,0.00019178,2]
[322017020,1712689839340,-500.0,0.00019178,2]
[322017022,1712689839351,-500.0,0.00019178,2]
[322017024,1712689839361,-500.0,0.00019178,2]
[322017026,1712689839371,-500.0,0.00019178,2]
[322017028,1712689839381,-1416.38,0.00019178,2]
[322017030,1712689839400,-680.7,0.00019178,2]
[322017032,1712689839410,-1213.14,0.00019178,2]
[322017033,1712689839419,-500.0,0.00019178,2]
[322017035,1712689839429,-500.0,0.00019178,2]
[322017037,1712689839438,-500.0,0.00019178,2]
[322017039,1712689839447,-500.0,0.00019178,2]
[322017041,1712689839457,-500.0,0.00019178,2]
[322017042,1712689839466,-1021.99,0.00019178,2]
[322017043,1712689839475,-688.68,0.00019178,2]
[322017044,1712689839485,-500.0,0.00019178,2]
[322017045,1712689839494,-500.0,0.00019178,2]
[322017046,1712689839503,-3446.09,0.00019178,2]
[322017048,1712689839512,-500.0,0.00019178,2]
[322017050,1712689839521,-5584.22,0.00019178,2]
[322017051,1712689839530,-500.0,0.00019178,2]
[322017052,1712689839540,-500.0,0.00019178,2]
[322017053,1712689839549,-500.0,0.00019178,2]
[322017054,1712689839558,-500.0,0.00019178,2]
[322017055,1712689839567,-500.0,0.00019178,2]
[322017056,1712689839576,-558.6,0.00019178,2]
[322017057,1712689839585,-516.33,0.00019178,2]
[322017058,1712689839594,-500.0,0.00019178,2]
[322017059,1712689839603,-1788.24,0.00019178,2]
[322017060,1712689839613,-500.0,0.00019178,2]
[322017061,1712689839622,-500.0,0.00019178,2]
[322017062,1712689839631,-500.0,0.00019178,2]
[322017063,1712689839642,-500.0,0.00019178,2]
[322017064,1712689839651,-500.0,0.00019178,2]
[322017065,1712689839661,-1714.1,0.00019178,2]
[322017066,1712689839670,-500.0,0.00019178,2]
[322017067,1712689839680,-500.0,0.00019178,2]
[322017068,1712689839689,-500.0,0.00019178,2]
[322017069,1712689839698,-957.64,0.00019178,2]
[322017070,1712689839708,-500.0,0.00019178,2]
[322017071,1712689839717,-500.0,0.00019178,2]
[322017072,1712689839727,-500.0,0.00019178,2]
[322017073,1712689839736,-500.0,0.00019178,2]
[322017074,1712689839745,-953.64,0.00019178,2]
[322017075,1712689839754,-549.91,0.00019178,2]
[322017076,1712689839763,-568.78,0.00019178,2]
[322017077,1712689839772,-550.06,0.00019178,2]
[322017078,1712689839782,-500.0,0.00019178,2]
[322017079,1712689839790,-823.39,0.00019178,2]
[322017080,1712689839800,-500.0,0.00019178,2]
[322017081,1712689839810,-500.0,0.00019178,2]
[322017082,1712689839818,-571.44,0.00019178,2]
[322017083,1712689839828,-500.0,0.00019178,2]
[322017084,1712689839837,-500.0,0.00019178,2]
[322017085,1712689839846,-606.64,0.00019178,2]
[322017086,1712689839854,-500.0,0.00019178,2]
[322017087,1712689839863,-500.0,0.00019178,2]
[322017088,1712689839873,-500.0,0.00019178,2]
[322017089,1712689839882,-579.63,0.00019178,2]
[322017090,1712689839892,-500.0,0.00019178,2]
[322017091,1712689839901,-500.0,0.00019178,2]
[322017092,1712689839910,-500.0,0.00019178,2]
[322017093,1712689839919,-500.0,0.00019178,2]
[322017094,1712689839928,-500.0,0.00019178,2]
[322017095,1712689839937,-954.79,0.00019178,2]
[322017096,1712689839946,-864.96,0.00019178,2]
[322017097,1712689839956,-613.74,0.00019178,2]
[322017098,1712689839965,-730.86,0.00019178,2]
[322017099,1712689839974,-456.5395265,0.00019178,2]
[322017100,1712689839983,-500.0,0.00019178,2]
[322017101,1712689839992,-1481.41,0.00019178,2]
[322017102,1712689840002,-500.0,0.00019178,2]
[322017103,1712689840011,-537.32,0.00019178,2]
[322017104,1712689840020,-926.66,0.00019178,2]
[322017105,1712689840030,-500.0,0.00019178,2]
[322017106,1712689840039,-500.0,0.00019178,2]
[322017107,1712689840048,-500.0,0.00019178,2]
[322017108,1712689840058,-500.0,0.00019178,2]
[322017109,1712689840067,-591.09,0.00019178,2]
[322017110,1712689840077,-500.0,0.00019178,2]
[322017111,1712689840086,-500.0,0.00019178,2]
[322017112,1712689840096,-1351.58,0.00019178,2]
[322017113,1712689840105,-500.0,0.00019178,2]
[322017114,1712689840114,-290.40318471,0.00019178,2]
[322017115,1712689840123,-236.11118748,0.00019178,2]
[322017116,1712689840132,-500.0,0.00019178,2]
[322017117,1712689840143,-500.0,0.00019178,2]
[322017118,1712689840152,-500.0,0.00019178,2]
[322017119,1712689840161,-500.0,0.00019178,2]
[322017120,1712689840170,-500.0,0.00019178,2]
[322017121,1712689840180,-500.0,0.00019178,2]
[322017122,1712689840189,-500.0,0.00019178,2]
[322017123,1712689840198,-1534.66,0.00019178,2]
[322017124,1712689840207,-858.69,0.00019178,2]
[322017125,1712689840216,-634.91,0.00019178,2]
[322017126,1712689840226,-500.0,0.00019178,2]
[322017127,1712689840235,-500.0,0.00019178,2]
[322017128,1712689840244,-500.0,0.00019178,2]
[322017129,1712689840253,-500.0,0.00019178,2]
[322017130,1712689840262,-500.0,0.00019178,2]
[322017131,1712689840273,-339.58435605,0.00019191,2]
[322017132,1712689840282,-503.03,0.00019241,2]
[322017133,1712689840291,-906.64,0.00019241,2]
[322017134,1712689840301,-393.0,0.000194,2]
[322017135,1712689840310,-208.25453289,0.00019407,2]
[322017136,1712689840319,-339.58435605,0.00019435,2]
[322017137,1712689840328,-162.15,0.00019438,2]
[322017138,1712689840337,-168.75036011,0.00019443,2]
[322017139,1712689840348,-199.74361967,0.0001945,2]
[322017140,1712689840359,-500.0,0.0001945,2]
[322017141,1712689840370,-682.1383049,0.0001945,2]
[322017142,1712689840380,-261.54416179,0.0001945,2]
[322017143,1712689840391,-13346.30398816,0.0001945,2]
[322017144,1712689840401,-2173.34818369,0.0001945,2]
[322017145,1712689840410,-282.64895007,0.00019451,2]
[322017146,1712689840623,-566.0012591,0.00019452,2]
[322017147,1712689840633,-500.0,0.00019452,2]
[322017148,1712689840644,-500.0,0.00019452,2]
[322017149,1712689840654,-500.0,0.00019452,2]
[322017150,1712689840663,-500.0,0.00019452,2]
[322017151,1712689840672,-500.0,0.00019452,2]
[322017152,1712689840681,-500.0,0.00019452,2]
[322017153,1712689840690,-450.05906139,0.00019452,2]
[322017154,1712689840700,-500.0,0.00019452,2]
[322017155,1712689840709,-500.0,0.00019452,2]
[322017156,1712689840719,-500.0,0.00019452,2]
[322017157,1712689840728,-552.98989376,0.00019452,2]
[322017158,1712689840737,-500.0,0.00019452,2]
[322017159,1712689840747,-500.0,0.00019452,2]
[322017160,1712689840757,-255.19361715,0.00019452,2]
[322017161,1712689840766,-500.0,0.00019452,2]
[322017162,1712689840775,-220.88180171,0.00019452,2]
[322017163,1712689840785,-500.0,0.00019452,2]
[322017164,1712689840794,-281.44724521,0.00019452,2]
[322017165,1712689840803,-500.0,0.00019452,2]
[322017166,1712689840812,-500.0,0.00019452,2]
[322017167,1712689840822,-500.0,0.00019452,2]
[322017168,1712689840831,-500.0,0.00019452,2]
[322017169,1712689840840,-500.0,0.00019452,2]
[322017170,1712689840849,-500.0,0.00019452,2]
[322017171,1712689840900,-500.0,0.00019452,2]
[322017172,1712689840909,-500.0,0.00019452,2]
[322017173,1712689840919,-253.70168011,0.00019452,2]
[322017174,1712689840929,-500.0,0.00019452,2]
[322017175,1712689840938,-500.0,0.00019452,2]
[322017176,1712689840948,-500.0,0.00019452,2]
[322017177,1712689840957,-642.01504044,0.00019452,2]
[322017178,1712689840966,-498.43083306,0.00019452,2]
[322017179,1712689840975,-500.0,0.00019452,2]
[322017180,1712689840985,-500.0,0.00019452,2]
[322017181,1712689840994,-500.0,0.00019452,2]
[322017182,1712689841003,-500.0,0.00019452,2]
[322017183,1712689841012,-346.08572394,0.00019452,2]
[322017184,1712689841021,-500.0,0.00019452,2]
[322017185,1712689841030,-500.0,0.00019452,2]
[322017186,1712689841039,-500.0,0.00019452,2]
[322017187,1712689841052,-500.0,0.00019452,2]
[322017188,1712689841062,-235.36695805,0.00019452,2]
[322017189,1712689841071,-500.0,0.00019452,2]
[322017190,1712689841080,-500.0,0.00019452,2]
[322017191,1712689841089,-500.0,0.00019452,2]
[322017192,1712689841099,-500.0,0.00019452,2]
[322017193,1712689841108,-500.0,0.00019452,2]
[322017194,1712689841117,-500.0,0.00019452,2]
[322017195,1712689841125,-612.69936122,0.00019452,2]
[322017196,1712689841134,-500.0,0.00019452,2]
[322017197,1712689841144,-618.83376095,0.00019452,2]
[322017198,1712689841153,-500.0,0.00019452,2]
[322017199,1712689841162,-541.7,0.00019452,2]
[322017200,1712689841171,-500.0,0.00019452,2]
[322017201,1712689841181,-1568.73,0.00019452,2]
[322017202,1712689841190,-500.0,0.00019452,2]
[322017203,1712689841199,-500.0,0.00019452,2]
[322017204,1712689841208,-556.51,0.00019452,2]
[322017205,1712689841217,-500.0,0.00019452,2]
[322017206,1712689841226,-500.0,0.00019452,2]
[322017207,1712689841235,-726.75,0.00019452,2]
[322017208,1712689841244,-500.0,0.00019452,2]
[322017209,1712689841253,-834.61,0.00019452,2]
[322017210,1712689841263,-579.84,0.00019452,2]
[322017211,1712689841276,-5931.33,0.00019452,2]
[322017212,1712689841286,-500.0,0.00019452,2]
[322017213,1712689841295,-500.0,0.00019452,2]
[322017214,1712689841305,-421.58542318,0.00019452,2]
[322017215,1712689841314,-500.0,0.00019452,2]
[322017216,1712689841324,-645.19,0.00019452,2]
[322017217,1712689841334,-500.0,0.00019452,2]
[322017218,1712689841343,-2631.18,0.00019452,2]
[322017219,1712689841355,-500.0,0.00019452,2]
[322017220,1712689841365,-500.0,0.00019452,2]
[322017221,1712689841374,-500.0,0.00019452,2]
[322017222,1712689841383,-500.0,0.00019452,2]
[322017223,1712689841395,-500.0,0.00019452,2]
[322017224,1712689841405,-1536.22,0.00019452,2]
[322017225,1712689841414,-500.0,0.00019452,2]
[322017226,1712689841423,-500.0,0.00019452,2]
[322017227,1712689841432,-4167.86,0.00019452,2]
[322017228,1712689841442,-924.52,0.00019452,2]
[322017229,1712689841451,-500.0,0.00019452,2]
[322017230,1712689841460,-500.0,0.00019452,2]
[322017231,1712689841469,-962.64,0.00019452,2]
[322017232,1712689841478,-500.0,0.00019452,2]
[322017233,1712689841487,-500.0,0.00019452,2]
[322017234,1712689841497,-988.75,0.00019452,2]
[322017235,1712689841506,-500.0,0.00019452,2]
[322017236,1712689841515,-500.0,0.00019452,2]
[322017237,1712689841524,-500.0,0.00019452,2]
[322017238,1712689841533,-500.0,0.00019452,2]
[322017239,1712689841542,-500.0,0.00019452,2]
[322017240,1712689841551,-500.0,0.00019452,2]
[322017241,1712689841560,-1416.38,0.00019452,2]
[322017242,1712689841570,-680.7,0.00019452,2]
[322017243,1712689841579,-1213.14,0.00019452,2]
[322017244,1712689841588,-500.0,0.00019452,2]
[322017245,1712689841597,-500.0,0.00019452,2]
[322017246,1712689841607,-500.0,0.00019452,2]
[322017247,1712689841616,-500.0,0.00019452,2]
[322017248,1712689841625,-500.0,0.00019452,2]
[322017249,1712689841634,-1021.99,0.00019452,2]
[322017250,1712689841645,-688.68,0.00019452,2]
[322017251,1712689841654,-500.0,0.00019452,2]
[322017252,1712689841664,-500.0,0.00019452,2]
[322017253,1712689841672,-3446.09,0.00019452,2]
[322017254,1712689841681,-500.0,0.00019452,2]
[322017255,1712689841690,-5584.22,0.00019452,2]
[322017256,1712689841699,-500.0,0.00019452,2]
[322017257,1712689841709,-500.0,0.00019452,2]
[322017258,1712689841718,-500.0,0.00019452,2]
[322017259,1712689841727,-500.0,0.00019452,2]
[322017260,1712689841736,-500.0,0.00019452,2]
[322017261,1712689841745,-558.6,0.00019452,2]
[322017262,1712689841754,-516.33,0.00019452,2]
[322017263,1712689841762,-500.0,0.00019452,2]
[322017264,1712689841772,-1788.24,0.00019452,2]
[322017265,1712689841781,-500.0,0.00019452,2]
[322017266,1712689841790,-500.0,0.00019452,2]
[322017267,1712689841799,-500.0,0.00019452,2]
[322017268,1712689841808,-500.0,0.00019452,2]
[322017269,1712689841818,-500.0,0.00019452,2]
[322017270,1712689841827,-1714.1,0.00019452,2]
[322017271,1712689841837,-500.0,0.00019452,2]
[322017272,1712689841846,-500.0,0.00019452,2]
[322017273,1712689841857,-500.0,0.00019452,2]
[322017274,1712689841867,-957.64,0.00019452,2]
[322017275,1712689841877,-500.0,0.00019452,2]
[322017276,1712689841888,-500.0,0.00019452,2]
[322017277,1712689841897,-500.0,0.00019452,2]
[322017278,1712689841906,-500.0,0.00019452,2]
[322017279,1712689841916,-953.64,0.00019452,2]
[322017280,1712689841925,-549.91,0.00019452,2]
[322017281,1712689841935,-568.78,0.00019452,2]
[322017282,1712689841945,-550.06,0.00019452,2]
[322017283,1712689841955,-500.0,0.00019452,2]
[322017284,1712689841967,-823.39,0.00019452,2]
[322017285,1712689841978,-500.0,0.00019452,2]
[322017286,1712689841987,-500.0,0.00019452,2]
[322017287,1712689841998,-571.44,0.00019452,2]
[322017288,1712689842009,-500.0,0.00019452,2]
[322017289,1712689842019,-500.0,0.00019452,2]
[322017290,1712689842030,-606.64,0.00019452,2]
[322017291,1712689842040,-500.0,0.00019452,2]
[322017292,1712689842050,-500.0,0.00019452,2]
[322017293,1712689842059,-500.0,0.00019452,2]
[322017294,1712689842069,-579.63,0.00019452,2]
[322017295,1712689842078,-500.0,0.00019452,2]
[322017296,1712689842088,-500.0,0.00019452,2]
[322017298,1712689842098,-500.0,0.00019452,2]
[322017299,1712689842107,-500.0,0.00019452,2]
[322017300,1712689842116,-500.0,0.00019452,2]
[322017301,1712689842126,-954.79,0.00019452,2]
[322017302,1712689842135,-864.96,0.00019452,2]
[322017303,1712689842145,-613.74,0.00019452,2]
[322017304,1712689842154,-730.86,0.00019452,2]
[322017305,1712689842164,-500.0,0.00019452,2]
[322017306,1712689842174,-1481.41,0.00019452,2]
[322017307,1712689842183,-500.0,0.00019452,2]
[322017308,1712689842193,-537.32,0.00019452,2]
[322017309,1712689842202,-926.66,0.00019452,2]
[322017310,1712689842211,-500.0,0.00019452,2]
[322017311,1712689842221,-500.0,0.00019452,2]
[322017312,1712689842231,-500.0,0.00019452,2]
[322017313,1712689842240,-500.0,0.00019452,2]
[322017314,1712689842250,-591.09,0.00019452,2]
[322017315,1712689842260,-500.0,0.00019452,2]
[322017316,1712689842270,-500.0,0.00019452,2]
[322017317,1712689842281,-1351.58,0.00019452,2]
[322017318,1712689842291,-500.0,0.00019452,2]
[322017319,1712689842300,-500.0,0.00019452,2]
[322017320,1712689842310,-500.0,0.00019452,2]
[322017321,1712689842319,-500.0,0.00019452,2]
[322017322,1712689842328,-500.0,0.00019452,2]
[322017323,1712689842337,-500.0,0.00019452,2]
[322017324,1712689842347,-500.0,0.00019452,2]
[322017325,1712689842357,-500.0,0.00019452,2]
[322017326,1712689842367,-1534.66,0.00019452,2]